Cogmind - Beta 9.6 @@@ ROGUE MODE // 2020.08.29 @ 17:21:41 Player: muxecoid Result: Destroyed by S-43 Plague with Heavy Machine Gun Performance ------------- Evolutions (9) 4500 Regions Visited (33) 6600 Robots Destroyed (268) 1340 Value Destroyed (10683) 10683 Prototype IDs (44) 880 Alien Tech Used (2) 400 Bonus (2941) 2941 TOTAL SCORE: 27344 Bonus ------- High Alert Combat Kills 769 Follower Combat Kills 1789 Network Hubs Disabled 200 Met Data Miner 300 Met Zhirov 300 Friendly Fire -417 Cogmind --------- Core Integrity 0/1600 Matter 26/300 Energy 100/100 System Corruption 3% Temperature Cool (0) Movement Hovering (60) Location -1/Access Parts ------- > --- POWER (2) -------- (None) > --- PROPULSION (6) --- Combat Linear Gravjet > --- UTILITY (15) ----- Experimental Optical Array > --- WEAPON (2) ------- (None) > --- INVENTORY (4) ---- Advanced Heavy Siege Treads Peak State ------------ > --- POWER ------------ Micro Fission Core > --- PROPULSION ------- Cooled Nuclear Pulse Thruster Nuclear Pulse Array Nuclear Pulse Array > --- UTILITY ---------- Compact Battery Compact Battery Improved Matter Compressor Experimental Optical Array Experimental Sensor Array Experimental Terrain Scan Processor Improved Hacking Suite Advanced Hacking Suite Advanced Hacking Suite Advanced Hacking Suite Advanced System Shield > --- WEAPON ----------- Force Lance > --- INVENTORY -------- Transdimensional Reconstructor EMDS Micro-nuke Launcher [Rating: 109] Favorites ----------- Power Light Nuclear Core Engine Light Angular Momentum Engine Power Core Light Nuclear Core Reactor Quantum Reactor Propulsion Carbon-fiber Leg Treads Medium Treads Leg Carbon-fiber Leg Wheel Armored Huge Wheel Hover Unit Gyrokinetic Inverter Flight Unit Cooled Nuclear Pulse Thruster Utility Medium Storage Unit Device Advanced Heat Sink Storage Medium Storage Unit Processor Experimental Optical Array Hackware Improved Hacking Suite Protection Hardened Medium Armor Plating Weapon Light Assault Rifle Energy Gun Shock Rifle Energy Cannon Long-range Proton Cannon Ballistic Gun Light Assault Rifle Launcher Improved Grenade Launcher Special Weapon Remote Datajack Impact Weapon Heavy Mace Slashing Weapon Katana Piercing Weapon Force Lance Build | -11 -10 -10 -9 -9 -9 -8 -8 -7 -7 -7 -7 -7 -7 -6 -6 -6 -6 -6 -6 -5 -5 -5 -5 -4 -4 -4 -4 -4 -4 -3 -2 -2 -1 ------- Run | Scr Mat Min Mat Min Exi Min Mat Fac Was Fac Low Low Dat Pro Fac Ext Cet Arc Hub Fac Upp Upp Zhi Pro Fac Was Fac Upp Upp Res Res Tes Acc Slots Evolved 18 | . . . 2 . . . 2 2 . . . . . . 2 . . . . 2 . . . . 2 . . . . 2 2 . 2 Power 1 | . . . . . . . . . . . . . . . . . . . . . . . . . . . . . . . 1 . . Propulsion 4 | . . . . . . . . . . . . . . . . . . . . 2 . . . . 1 . . . . 1 . . . Utility 13 | . . . 2 . . . 2 2 . . . . . . 2 . . . . . . . . . 1 . . . . 1 1 . 2 Weapon . | . . . . . . . . . . . . . . . . . . . . . . . . . . . . . . . . . . Parts Attached 387 | 6 2 7 6 2 1 4 17 30 10 16 4 11 . 16 14 23 27 4 17 52 7 16 8 3 13 2 20 4 1 11 16 1 16 Power 31 | 1 . 2 . 1 . . 1 1 2 1 . 1 . 2 1 3 2 1 1 4 1 1 . . . . 1 . . 1 1 . 2 Engine 13 | 1 . 2 . . . . . 1 2 . . 1 . 1 . 2 . . . 2 1 . . . . . . . . . . . . Core 12 | . . . . 1 . . 1 . . 1 . . . 1 1 1 1 1 1 1 . 1 . . . . 1 . . . . . . Reactor 6 | . . . . . . . . . . . . . . . . . 1 . . 1 . . . . . . . . . 1 1 . 2 Propulsion 78 | 2 . 3 1 1 . . 2 3 . . . 1 . 1 4 3 6 . 1 13 1 4 3 2 2 . 9 1 . 3 7 1 4 Treads 17 | . . 2 . . . . . . . . . 1 . . 1 . 3 . 1 3 . 4 . 1 . . . . . . . . 1 Leg 20 | . . 1 1 1 . . 2 2 . . . . . . 3 3 3 . . 3 . . . . . . . . . . 1 . . Wheel 6 | 2 . . . . . . . 1 . . . . . 1 . . . . . 2 . . . . . . . . . . . . . Hover 13 | . . . . . . . . . . . . . . . . . . . . 5 . . . . . . 3 . . 2 2 . 1 Flight 22 | . . . . . . . . . . . . . . . . . . . . . 1 . 3 1 2 . 6 1 . 1 4 1 2 Utility 136 | 1 2 . 2 . . . 7 12 4 7 . 1 . 5 5 10 13 . 8 17 2 10 3 1 7 2 3 1 . 4 6 . 3 Device 33 | . . . . . . . . 4 1 . . . . 1 2 2 4 . 3 7 1 1 1 . . 2 . . . 2 1 . 1 Storage 29 | 1 2 . 2 . . . . 3 . 3 . 1 . . . 2 . . 1 2 1 8 1 . 1 . . . . 1 . . . Processor 15 | . . . . . . . . . . 3 . . . . . . 1 . 1 . . 1 . . 3 . . 1 . 1 4 . . Hackware 17 | . . . . . . . . 1 . . . . . . . 1 . . 1 4 . . 1 . 3 . 3 . . . 1 . 2 Protection 42 | . . . . . . . 7 4 3 1 . . . 4 3 5 8 . 2 4 . . . 1 . . . . . . . . . Artifact . | . . . . . . . . . . . . . . . . . . . . . . . . . . . . . . . . . . Weapon 142 | 2 . 2 3 . 1 4 7 14 4 8 4 8 . 8 4 7 6 3 7 18 3 1 2 . 4 . 7 2 1 3 2 . 7 Energy Gun 37 | 1 . . 3 . 1 1 5 5 . 1 1 4 . . . 2 3 2 3 2 . . . . . . . . . 2 1 . . Energy Cannon 17 | . . . . . . . . . . . . 1 . 2 1 . . . . 4 . 1 1 . . . 1 . . . 1 . 5 Ballistic Gun 45 | 1 . 2 . . . 3 2 4 3 2 . . . 2 2 4 3 1 3 9 3 . . . . . . 1 . . . . . Ballistic Cannon . | . . . . . . . . . . . . . . . . . . . . . . . . . . . . . . . . . . Launcher 20 | . . . . . . . . 2 . 2 2 2 . 4 . . . . . . . . . . 1 . 3 1 . 1 . . 2 Special Weapon 1 | . . . . . . . . 1 . . . . . . . . . . . . . . . . . . . . . . . . . Impact Weapon 3 | . . . . . . . . . . . . . . . . . . . . . . . 1 . 1 . . . 1 . . . . Slashing Weapon 14 | . . . . . . . . 2 1 3 1 1 . . 1 1 . . 1 3 . . . . . . . . . . . . . Piercing Weapon 5 | . . . . . . . . . . . . . . . . . . . . . . . . . 2 . 3 . . . . . . Special Melee Weapon . | . . . . . . . . . . . . . . . . . . . . . . . . . . . . . . . . . . Unidentified Prototypes 24 | . . . . . . . 2 1 . . . . . . . . 1 . 2 6 . . 4 . 1 1 . . . 1 2 1 2 Parts Lost 185 | . . 7 1 3 . 2 6 4 2 3 . 8 . 6 6 14 21 1 5 26 4 7 . . 6 . 17 1 . 10 10 1 14 Power 21 | . . 2 . 1 . . 2 . . . . 1 . 2 1 3 1 1 1 2 1 1 . . . . 1 . . 1 . . . Propulsion 45 | . . 3 . 1 . . . . . . . 1 . 1 2 2 4 . . 7 . 3 . . 1 . 7 . . 5 3 . 5 Utility 68 | . . . . . . . 3 2 . 2 . 3 . 1 1 5 12 . 1 10 1 3 . . 4 . 5 1 . 2 5 1 6 Weapon 51 | . . 2 1 1 . 2 1 2 2 1 . 3 . 2 2 4 4 . 3 7 2 . . . 1 . 4 . . 2 2 . 3 Highest Loss Streak 12 | . . 3 1 2 . 1 2 2 1 2 . 5 . 3 2 9 12 1 2 12 2 5 . . 2 . 5 1 . 10 10 1 12 Average Slot Usage (%) 85 | . 88 99 97 98 100 100 98 92 81 91 92 83 69 74 79 97 90 100 91 83 40 77 91 99 83 73 63 59 64 62 49 35 36 Engine 3 | . 14 14 11 4 . . . 7 5 6 . 5 7 5 . 2 2 . . . 3 4 . . . . . . . . . . . Core 2 | . . . . 6 11 11 8 . . . 7 1 . 1 6 2 . 3 5 2 1 . 5 5 5 5 3 5 5 3 . . . Treads 2 | . . 10 8 . . . . . . . . 5 7 1 . . 8 . 2 3 . 7 1 4 1 . . . . . . . . Leg 5 | . . 8 13 22 22 22 17 10 . . . . . . 4 12 2 13 6 8 . . . . . . . . . . . . . Wheel 2 | . 28 8 . . . . . 2 7 7 7 1 . 5 3 . . . . 2 . . . . . . . . . . . . . Flight 2 | . . . . . . . . . . . . . . . . . . . . . 4 . 11 16 15 10 6 9 10 9 3 12 15 Device 5 | . . . . . . . . 4 8 7 7 5 . . 7 16 7 13 10 9 4 7 11 11 7 . . . . 2 . . . Storage 27 | . 17 28 41 44 44 44 36 37 28 23 30 35 38 37 26 33 35 33 33 22 . 29 24 23 16 10 4 . . 2 . . . Processor 3 | . . . . . . . . . . 6 7 7 7 2 . . 2 6 3 . . 1 5 5 10 15 15 18 21 21 28 18 14 Hackware 4 | . . . . . . . . . 7 1 . . . . . 3 . . 2 10 11 11 14 16 16 26 24 17 15 12 6 4 1 Protection 6 | . . . . . . . 17 13 8 20 15 3 . 4 15 10 13 13 10 3 . . . . . . . . . . . . . Energy Gun 3 | . 14 3 4 20 22 5 10 4 1 . 1 10 . . . 1 4 8 6 1 . . . . . . . . . . 3 . . Ballistic Gun 6 | . 14 24 17 . . 17 7 8 12 11 1 . . 4 9 10 7 3 5 6 6 . . . . . . 2 5 . . . . Naked Turns . | . . . . . . . . . . . . . . . . . . . . . . . . . . . . . . . . . . Heaviest Build 127 | 10 30 30 57 59 59 59 79 100 82 82 81 80 73 124 109 92 117 98 127 119 17 33 26 34 34 28 28 16 13 27 32 . 40 Greatest Support 84 | 20 20 20 25 25 25 25 36 36 28 28 28 70 70 70 40 35 70 35 80 75 16 84 27 27 49 29 45 16 16 43 36 24 80 Greatest Overweight (x) 9 | . 1 1 2 2 2 2 4 3 2 2 2 2 1 4 4 6 4 2 2 9 1 1 2 1 1 . . . . . 5 . 4 Average Overweight (x) . | . . 1 1 2 2 2 1 2 1 2 2 1 1 2 2 1 1 2 1 1 . . . . . . . . . . . . . Largest Inventory Capacity 32 | 6 14 14 24 24 24 24 24 28 28 24 24 28 28 28 24 32 32 28 28 28 14 4 4 4 10 10 10 4 4 8 4 4 4 Average Capacity 18 | 5 7 14 22 24 24 24 24 27 22 20 24 26 28 27 24 28 29 28 28 21 4 4 4 4 5 10 5 4 4 6 4 4 4 Most Carried 30 | 4 9 13 17 21 20 20 24 28 26 21 23 24 24 24 23 29 30 28 28 28 10 4 4 4 4 8 9 3 3 4 4 4 4 Average Carried 16 | 2 5 9 11 18 20 19 22 26 21 19 22 22 24 21 19 24 24 24 26 19 4 3 2 3 3 4 4 2 3 3 3 3 2 Final Capacity 32 | 6 14 14 24 24 24 24 24 28 20 24 24 28 28 24 24 32 28 28 28 10 4 4 4 4 10 10 4 4 4 4 4 4 4 Final Carried 29 | 4 8 12 17 21 20 20 23 26 20 21 23 24 24 20 22 29 23 28 28 10 4 4 4 4 4 8 3 3 3 3 3 4 2 Class Distribution -------------------- 43% | Hauler-Mutant 37% | Scavenger-Mutant 6% | Hacker-Mutant 4% | Mutant Dominant Class ---------------- Mutant | -10/Materials Scavenger-Mutant | -10/Mines Hauler-Mutant | -9/Materials Hauler-Mutant | -9/Mines Hauler-Mutant | -9/Exiles Scavenger-Mutant | -8/Mines Hauler-Mutant | -8/Materials Hauler-Mutant | -7/Factory Hauler-Mutant | -7/Waste Hauler-Mutant | -7/Factory Hauler-Mutant | -7/Lower Caves Hauler-Mutant | -7/Lower Caves Hauler-Mutant | -7/Data Miner Hauler-Mutant | -6/Proximity Caves Scavenger-Mutant | -6/Factory Scavenger-Mutant | -6/Extension Scavenger-Mutant | -6/Cetus Scavenger-Mutant | -6/Archives Scavenger-Mutant | -6/Hub_04(d) Scavenger-Mutant | -5/Factory Hacker-Mutant | -5/Upper Caves Scavenger-Mutant | -5/Upper Caves Scavenger-Sprinter | -5/Zhirov Scavenger-Mutant | -4/Proximity Caves Wizard-Sprinter | -4/Factory Wizard-Mutant | -4/Waste Wizard-Mutant | -4/Factory Hacker-Mutant | -4/Upper Caves Hacker-Mutant | -4/Upper Caves Hacker-Mutant | -3/Research Hacker-Mutant | -2/Research Mutant | -2/Testing Sprinter | -1/Access Resources | -11 -10 -10 -9 -9 -9 -8 -8 -7 -7 -7 -7 -7 -7 -6 -6 -6 -6 -6 -6 -5 -5 -5 -5 -4 -4 -4 -4 -4 -4 -3 -2 -2 -1 ----------- Run | Scr Mat Min Mat Min Exi Min Mat Fac Was Fac Low Low Dat Pro Fac Ext Cet Arc Hub Fac Upp Upp Zhi Pro Fac Was Fac Upp Upp Res Res Tes Acc Matter Collected 7378 | 218 71 150 82 15 . 64 192 551 376 363 153 117 . 406 317 458 551 247 413 1037 212 517 275 94 80 . 90 45 34 142 . . 108 Remotely . | . . . . . . . . . . . . . . . . . . . . . . . . . . . . . . . . . . Salvage Created 13583 | . 101 128 407 217 . 151 566 1110 578 622 287 649 . 490 507 570 914 569 1330 1547 201 1009 523 . 156 . 295 50 . 208 205 . 193 Parts 610 | . 8 . 20 15 . 4 30 49 6 26 19 25 . 32 25 33 47 34 61 85 4 32 9 . 8 . 8 6 . 12 7 . 5 Haulers Intercepted 3 | . 1 . . . . . 1 . . . . . . . . . . . . . . . . . . . . . . . . . 1 Recyclers Shooed 6 | . . . . . . . . . . 1 . . . . 1 1 . . . 3 . . . . . . . . . . . . . Parts Field Recycled . | . . . . . . . . . . . . . . . . . . . . . . . . . . . . . . . . . . Retrieved Matter . | . . . . . . . . . . . . . . . . . . . . . . . . . . . . . . . . . . Parts Self-Destructed 58 | . . . . . . . . . . . 8 10 . 31 . . . . . . 4 4 . . . . . 1 . . . . . Prevented 32 | . . . . . . . . . . . 2 7 . 6 . . . . . . . 9 7 1 . . . . . . . . . Kills | -11 -10 -10 -9 -9 -9 -8 -8 -7 -7 -7 -7 -7 -7 -6 -6 -6 -6 -6 -6 -5 -5 -5 -5 -4 -4 -4 -4 -4 -4 -3 -2 -2 -1 ------- Run | Scr Mat Min Mat Min Exi Min Mat Fac Was Fac Low Low Dat Pro Fac Ext Cet Arc Hub Fac Upp Upp Zhi Pro Fac Was Fac Upp Upp Res Res Tes Acc Combat Hostiles Destroyed 218 | . 3 9 7 8 . 3 9 23 2 10 9 8 . 21 8 6 16 4 15 17 8 12 . . 3 . 6 5 . 3 2 . 1 Melee 4 | . . . . . . . . 2 . . . . . . . 1 . . . . . . . . 1 . . . . . . . . Guns 137 | . 3 9 7 8 . 3 9 15 2 4 1 1 . 5 7 5 16 4 15 14 8 . . . . . . . . 1 . . . Cannons 18 | . . . . . . . . . . . . . . 4 1 . . . . 1 . 10 . . . . 1 . . . . . 1 AOE 51 | . . . . . . . . 6 . 5 8 5 . 12 . . . . . 1 . 1 . . 2 . 4 5 . 2 . . . Classes Destroyed 19 | . 2 1 3 . . . 4 3 1 2 . . . . . 2 1 . . . . . . . . . . . . . . . . Worker 13 | . . . . . . . . . . . . . . . . 1 . . 7 3 . . . . . . . . . 2 . . . Builder 6 | . . . . . . . . 1 . . . . . . . . . . . 3 . . . . 1 . . . . . . . 1 Tunneler 3 | . . . . . . . 1 . . . . . . . . . . . 1 . . . . . . . . . . 1 . . . Hauler 3 | . 1 . . . . . 1 . . . . . . . . . . . . . . . . . . . . . . . . . 1 Recycler 6 | . . . 1 . . . . . . . . . . . . 1 . . 1 2 . . . . . . . . . 1 . . . Mechanic 2 | . . . . . . . . . . 2 . . . . . . . . . . . . . . . . . . . . . . . Operator 9 | . . . . . . . 1 . . . . . . . . 1 . 6 . 1 . . . . . . . . . . . . . Watcher 5 | . . . . . . . . . . . . . . . . . 1 . 1 3 . . . . . . . . . . . . . Swarmer 70 | . 3 . 1 6 . . . 5 . . 4 . . 17 . 2 6 . 4 . 8 6 . . . . . 5 . 3 . . . Grunt 73 | . . . 6 2 . 3 4 12 . 7 4 5 . 1 4 1 5 . 4 6 . 4 . . 1 . 2 . . . 1 . 1 Brawler 5 | . . . . . . . . 2 . . . . . . . . 1 . . 1 . 1 . . . . . . . . . . . Duelist 4 | . . . . . . . . . . 1 . . . . 2 . . . 1 . . . . . . . . . . . . . . Sentry 26 | . . . . . . . 3 1 . . . 1 . 1 2 2 . 4 3 4 . 1 . . . . 3 . . . 1 . . Hunter 10 | . . . . . . . 2 . . 1 1 . . 1 . . . . . 2 . . . . 2 . 1 . . . . . . Programmer 10 | . . . . . . . . 3 . 1 . 2 . 1 . . . . . 3 . . . . . . . . . . . . . Behemoth 2 | . . . . . . . . . . . . . . . . 1 . . . 1 . . . . . . . . . . . . . Compactor 2 | . . . . . . . . . 2 . . . . . . . . . . . . . . . . . . . . . . . . Cetus Guard 4 | . . . . . . . . . . . . . . . . . 4 . . . . . . . . . . . . . . . . Lightning 3 | . . . . . . . . . . . . . . . . . . . 3 . . . . . . . . . . . . . . Zionite 1 | . . . 1 . . . . . . . . . . . . . . . . . . . . . . . . . . . . . . Assembled 9 | . . 9 . . . . . . . . . . . . . . . . . . . . . . . . . . . . . . . Thug 2 | . . . 1 . . . . . . . . . . . . 1 . . . . . . . . . . . . . . . . . Best Kill Streak 11 | . 4 4 3 3 . 2 3 5 1 5 4 4 . 7 3 3 7 2 8 11 5 5 . . 3 . 3 5 . 4 1 . 1 Combat Bots Only 7 | . 3 4 3 3 . 2 2 5 1 4 4 5 . 7 3 2 6 1 3 5 5 5 . . 2 . 3 5 . 2 1 . 1 Max Kills in Single Turn 4 | . 1 1 2 1 . 1 1 2 1 3 3 2 . 3 1 1 1 1 4 2 1 2 . . 2 . 1 4 . 4 1 . 1 Gunslinging 1 | . . . 1 . . . . 1 . . . . . . . . . . 1 . . . . . . . . . . . . . . Exploded 4 | . . . . . . . . 2 . 2 3 2 . 3 . . . . . 1 . 1 . . 1 . 1 4 . 2 . . . Melee 1 | . . . . . . . . 1 . . . . . . . 1 . . . . . . . . 1 . . . . . . . . Uniques/NPCs Destroyed . | . . . . . . . . . . . . . . . . . . . . . . . . . . . . . . . . . . Combat | -11 -10 -10 -9 -9 -9 -8 -8 -7 -7 -7 -7 -7 -7 -6 -6 -6 -6 -6 -6 -5 -5 -5 -5 -4 -4 -4 -4 -4 -4 -3 -2 -2 -1 -------- Run | Scr Mat Min Mat Min Exi Min Mat Fac Was Fac Low Low Dat Pro Fac Ext Cet Arc Hub Fac Upp Upp Zhi Pro Fac Was Fac Upp Upp Res Res Tes Acc Damage Taken 30528 | . 92 878 240 198 . 288 1556 1537 143 930 295 1091 . 1502 962 1757 3281 519 1256 4198 744 490 48 23 794 . 1847 41 . 1542 1202 49 3025 Core 6235 | . 47 148 96 39 . 14 124 72 5 57 32 91 . 113 159 279 172 47 157 514 251 69 24 . 206 . 833 8 . 661 461 24 1532 Absorbed by Shields 155 | . . . . . . . . . . . . . . . . 118 . . . . . . . . . . . . . . . . 37 Reduced by Siege Mode 97 | . . . . . . . . . . . . . . . . . 97 . . . . . . . . . . . . . . . . Core Remaining (%) 44 | 100 . 22 . . . 62 77 . . . . . . 47 . . . . 4 . . . . 14 . . . . 8 49 . 66 . Volleys Fired 888 | . 9 41 19 14 . 14 63 61 46 39 7 28 . 49 30 37 69 63 64 79 26 43 30 . 6 . 12 2 1 4 9 . 23 Largest 2 | . 2 2 2 2 . 2 2 2 2 2 2 2 . 2 2 2 2 2 2 2 2 1 1 . 1 . 1 1 1 2 2 . 1 Hottest 160 | . 70 70 100 100 . 100 105 86 103 73 80 130 . 96 96 105 110 160 160 120 70 70 81 . 81 . 70 49 30 107 107 . 120 Shots Fired 1515 | . 18 82 38 23 . 28 126 104 84 59 10 51 . 63 60 68 135 122 125 142 45 44 28 . 6 . 12 2 1 5 11 . 23 Gun 1322 | . 18 82 38 23 . 28 126 94 84 49 1 40 . 39 47 68 135 122 125 131 45 18 . . . . . . 1 4 4 . . Cannon 137 | . . . . . . . . . . . . 7 . 14 13 . . . . 11 . 26 28 . 4 . 5 . . . 7 . 22 Launcher 55 | . . . . . . . . 9 . 10 9 4 . 10 . . . . . . . . . . 2 . 7 2 . 1 . . 1 Special 1 | . . . . . . . . 1 . . . . . . . . . . . . . . . . . . . . . . . . . Kinetic 915 | . 9 74 22 . . 24 60 60 75 47 . . . 39 47 60 93 53 68 120 45 18 . . . . . . 1 . . . . Thermal 309 | . 9 8 4 . . . 23 26 9 . 1 9 . . . 8 42 69 57 14 . . . . . . . . . 4 4 . 22 Explosive 32 | . . . . . . . . . . . 6 4 . 10 . . . . . . . . . . 2 . 7 2 . 1 . . . Electromagnetic 258 | . . . 12 23 . 4 43 17 . 12 3 38 . 14 13 . . . . 8 . 26 28 . 4 . 5 . . . 7 . 1 Robot Hit Streak 34 | . 5 7 10 12 . 8 11 8 12 8 5 15 . 11 11 14 34 15 13 17 5 9 13 . 14 . 7 1 . 3 6 . 13 Robot Miss Streak 10 | . 3 5 2 1 . 2 4 10 3 7 1 2 . 5 6 9 2 4 5 5 3 2 1 . 2 . . 1 1 3 2 . 1 Penetration Max 1 | . . . . . . . . . . . . . . . . . 1 1 1 1 . 1 . . . . . . . . . . . Secondary Targets 35 | . . 3 1 1 . . 1 6 1 . . . . . 1 2 8 . 3 5 3 . . . . . . . . . . . . Max Gunslinging Chain 1 | . . 1 1 1 . . 1 1 1 . . . . . 1 1 1 . 1 1 1 . . . . . . . . . . . . Shots Hit Robots 1044 | . 11 48 27 19 . 19 87 72 62 35 8 41 . 39 52 53 106 81 77 94 21 32 25 . 6 . 6 1 . 5 9 . 8 Core Hits 640 | . 5 24 16 9 . 10 34 46 16 32 15 24 . 34 57 49 43 29 58 53 8 23 8 . 7 . 14 5 . 10 3 . 8 Critical Hits 57 | . . 1 1 . . . . 1 1 2 . 1 . 1 1 1 10 6 8 14 4 2 . . . . 2 . . . . . 1 Critical Kills 21 | . . . 1 . . . . 1 . . . . . . 1 1 5 1 5 4 1 . . . . . 1 . . . . . . Critical Parts Destroyed 31 | . . 1 . . . . . . 1 1 . 1 . 1 . . 3 4 3 10 3 2 . . . . . . . . . . 1 Melee Attacks 195 | . . . . . . . . 9 2 15 10 2 . 1 9 2 . . 4 8 . . . 46 50 . 24 . . 13 . . . Impact 85 | . . . . . . . . . . . . . . . . . . . . . . . . 46 26 . . . . 13 . . . Slashing 62 | . . . . . . . . 9 2 15 10 2 . 1 9 2 . . 4 8 . . . . . . . . . . . . . Piercing 48 | . . . . . . . . . . . . . . . . . . . . . . . . . 24 . 24 . . . . . . Sneak Attacks 3 | . . . . . . . . . . 1 . . . . . . . . . . . . . . . . . . . 2 . . . Combat Hostiles . | . . . . . . . . . . . . . . . . . . . . . . . . . . . . . . . . . . Follow-up Attacks . | . . . . . . . . . . . . . . . . . . . . . . . . . . . . . . . . . . Damage Inflicted 30626 | . 106 389 354 315 . 176 1143 1980 1194 1660 812 1187 . 2158 1125 1315 2331 1889 2733 3459 517 1538 676 . 588 . 1106 566 . 519 339 . 451 Guns 18523 | . 106 389 354 315 . 176 1041 1064 1194 478 25 606 . 524 897 1283 2308 1889 2210 2512 517 478 . . . . . . . 82 75 . . Cannons 3118 | . . . . . . . . . . . . 78 . 240 228 . . . . 274 . 963 430 . 120 . 211 . . . 260 . 314 Explosions 8051 | . . . . . . . 95 789 . 1087 787 398 . 1292 . . . . 521 673 . 97 246 . 276 . 895 566 . 220 . . 109 Melee 849 | . . . . . . . . 127 . 95 . 102 . 102 . 28 . . . . . . . . 192 . . . . 203 . . . Ramming 85 | . . . . . . . 7 . . . . 3 . . . 4 23 . 2 . . . . . . . . . . 14 4 . 28 Kinetic 12580 | . 26 338 134 . . 121 269 653 990 463 . . . 524 897 1139 1470 946 1294 2321 517 478 . . . . . . . . . . . Thermal 6461 | . 80 51 63 . . . 311 602 204 172 75 209 . 80 . 144 838 943 916 896 . 97 246 . . . 63 . . 82 75 . 314 Explosive 4016 | . . . . . . . . . . . 553 357 . 1212 . . . . . . . . . . 276 . 832 566 . 220 . . . Electromagnetic 6635 | . . . 157 315 . 55 556 598 . 930 184 516 . 240 228 . . . 521 242 . 963 430 . 120 . 211 . . . 260 . 109 Impact 203 | . . . . . . . . . . . . . . . . . . . . . . . . . . . . . . 203 . . . Slashing 454 | . . . . . . . . 127 . 95 . 102 . 102 . 28 . . . . . . . . . . . . . . . . . Piercing 192 | . . . . . . . . . . . . . . . . . . . . . . . . . 192 . . . . . . . . Highest Corruption 8 | . . 8 . . . . . 1 . 1 . . . . . 1 1 1 1 8 8 8 8 8 3 3 3 3 3 . 7 7 3 Average Corruption 4 | . . 7 . . . . . 1 . 1 . . . . . 1 1 1 1 7 8 8 8 8 2 3 3 3 3 . 7 7 2 Corruption Purged 3 | . . . . . . . . 2 . 1 . . . . . . . . . . . . . . . . . . . . . . . Effects 185 | . . 22 . . . . . 4 . 1 . . . . . . 6 3 3 32 14 41 12 22 . . 12 5 2 . 3 2 1 Message Errors 40 | . . 7 . . . . . . . . . . . . . . . . 1 4 1 15 2 5 . . 3 . . . 1 . 1 Matter Fused 32 | . . 4 . . . . . . . . . . . . . . . . . 6 2 5 4 7 . . 3 1 . . . . . Heat Flow Errors 14 | . . 2 . . . . . . . . . . . . . . . . . 2 1 3 1 2 . . 1 2 . . . . . Energy Discharges 27 | . . 3 . . . . . . . 1 . . . . . . 2 . 2 3 3 6 2 2 . . 2 . . . 1 . . Parts Rejected 1 | . . . . . . . . . . . . . . . . . . . . . . . . . . . . . . . . 1 . Data Loss (minor) 20 | . . 2 . . . . . 3 . . . . . . . . 1 1 . 2 . 3 . 2 . . 2 1 1 . 1 1 . Data Loss (major) 10 | . . 1 . . . . . . . . . . . . . . . . . 2 2 4 . 1 . . . . . . . . . Misfires 5 | . . . . . . . . . . . . . . . . . . . . 1 3 1 . . . . . . . . . . . Targeting Errors 32 | . . 3 . . . . . 1 . . . . . . . . 3 2 . 10 2 4 1 3 . . 1 1 1 . . . . Weapon Failures 4 | . . . . . . . . . . . . . . . . . . . . 2 . . 2 . . . . . . . . . . Overload Shots . | . . . . . . . . . . . . . . . . . . . . . . . . . . . . . . . . . . Overflow Damage 746 | . . . . . . . . 10 . 76 1 2 . 47 . . . . . 258 . 31 81 . 13 . 22 57 . 148 . . . Projectiles 134 | . . . . . . . . . . . . . . . . . . . . 37 . 31 56 . 10 . . . . . . . . Explosions 406 | . . . . . . . . 10 . 21 1 2 . 47 . . . . . 221 . . 25 . . . 22 57 . . . . . Melee 206 | . . . . . . . . . . 55 . . . . . . . . . . . . . . 3 . . . . 148 . . . Knockbacks 2 | . . . . . . . . . . . . . . . . . . . . . . . . . . . . . . 2 . . . Impact 2 | . . . . . . . . . . . . . . . . . . . . . . . . . . . . . . 2 . . . Kinetic . | . . . . . . . . . . . . . . . . . . . . . . . . . . . . . . . . . . Secondary . | . . . . . . . . . . . . . . . . . . . . . . . . . . . . . . . . . . Self-Inflicted Damage 520 | . . . . . . . 88 6 . 120 . 83 . 87 . . . . 8 . . . 49 . . . . 14 . 50 2 . 13 Shots 16 | . . . . . . . 2 1 . 5 . 2 . 2 . . . . 1 . . . 1 . . . . 1 . 1 . . . Rammed 16 | . . . . . . . . . . . . 2 . . . . 2 . 1 . . . . . . . . . . 3 1 . 7 Targets Rammed 18 | . . . . . . . 1 . . . . 2 . . . 1 2 . 1 . . . . . . . . . . 3 1 . 7 Kicked 2 | . . . . . . . 1 . . . . . . . . 1 . . . . . . . . . . . . . . . . . Crushed . | . . . . . . . . . . . . . . . . . . . . . . . . . . . . . . . . . . Highest Temperature 513 | . 120 212 150 150 . 56 441 513 48 82 45 368 . 338 13 36 341 . 486 208 169 210 55 107 . . 235 199 3 36 30 . 348 Average Temperature 100 | . 55 79 66 64 . 19 125 167 27 30 23 115 . 126 6 14 86 . 237 47 90 38 22 58 . . 53 93 3 18 22 . 91 Received Heat Transfer 5342 | . . 100 114 33 . 144 495 369 . 288 54 387 . 114 366 337 513 90 243 771 . 27 . 12 66 . 198 . . 279 180 . 162 Effects 11 | . . . . . . . 1 5 . . . . . . . . . . 4 . . . . . . . . . . . . . 1 Shutdowns 1 | . . . . . . . . . . . . . . . . . . . . . . . . . . . . . . . . . 1 Energy Bleed 2 | . . . . . . . . 1 . . . . . . . . . . 1 . . . . . . . . . . . . . . Interference 2 | . . . . . . . . . . . . . . . . . . . 2 . . . . . . . . . . . . . . Matter Decay 2 | . . . . . . . . 1 . . . . . . . . . . 1 . . . . . . . . . . . . . . Short Circuit 3 | . . . . . . . 1 2 . . . . . . . . . . . . . . . . . . . . . . . . . Damage (minor) 1 | . . . . . . . . 1 . . . . . . . . . . . . . . . . . . . . . . . . . Siege Activations 3 | . . . . . . . . . . . . . . . . . 2 . 1 . . . . . . . . . . . . . . Total Turns 98 | . . . . . . . . . . . . . . . . . 95 . 3 . . . . . . . . . . . . . . Longest Duration 77 | . . . . . . . . . . . . . . . . . 77 . 3 . . . . . . . . . . . . . . Robots Corrupted 11 | . . . . . . . . . . 1 . 2 . . . . . . . 1 . 1 3 . . . 1 . . . 2 . . Combat Hostiles 11 | . . . . . . . . . . 1 . 2 . . . . . . . 1 . 1 3 . . . 1 . . . 2 . . Parts Fried 33 | . . . . . . . 3 2 . 4 . 2 . . 1 . . . . 2 . 5 6 . . . 2 . . 3 3 . . Impact Corruptions 4 | . . . . . . . . . . . . . . . . . . . . . . . . . . . . . . 4 . . . Robots Melted . | . . . . . . . . . . . . . . . . . . . . . . . . . . . . . . . . . . Combat Hostiles . | . . . . . . . . . . . . . . . . . . . . . . . . . . . . . . . . . . Parts Melted 19 | . 2 . . 1 . . . 1 . 1 . . . . . 2 3 4 2 3 . . . . . . . . . . . . . Heat Transferred 8934 | . 222 148 148 . . . 573 979 475 250 87 309 . 50 . 222 1295 1443 1315 709 . 150 112 . . . 50 . . 111 111 . 175 Parts Sabotaged . | . . . . . . . . . . . . . . . . . . . . . . . . . . . . . . . . . . Parts Stolen . | . . . . . . . . . . . . . . . . . . . . . . . . . . . . . . . . . . Parts Stripped . | . . . . . . . . . . . . . . . . . . . . . . . . . . . . . . . . . . Power Chain Reactions 14 | . . . . . . . 2 5 . 2 1 1 . 1 . . . . . . . 1 1 . . . . . . . . . . Missiles Intercepted . | . . . . . . . . . . . . . . . . . . . . . . . . . . . . . . . . . . Alert | -11 -10 -10 -9 -9 -9 -8 -8 -7 -7 -7 -7 -7 -7 -6 -6 -6 -6 -6 -6 -5 -5 -5 -5 -4 -4 -4 -4 -4 -4 -3 -2 -2 -1 ------- Run | Scr Mat Min Mat Min Exi Min Mat Fac Was Fac Low Low Dat Pro Fac Ext Cet Arc Hub Fac Upp Upp Zhi Pro Fac Was Fac Upp Upp Res Res Tes Acc Peak Influence 1476 | . 118 45 244 156 . 60 153 318 98 1476 . . . . 292 285 249 186 516 395 . . . . 122 20 284 . . 276 201 104 375 Average Influence 193 | . 64 15 89 111 . 31 52 170 56 920 . . . . 206 132 127 131 207 151 . . . . 31 20 163 . . 182 161 98 218 Maximum Alert Level 4 | . . . 1 . . . . 1 . 4 . . . . 1 1 1 . 2 1 . . . . . . 1 . . 1 1 . 1 Low Security (%) 69 | 100 100 100 85 100 . 100 100 46 100 15 . . . . 51 65 85 100 59 62 . . . . 100 100 40 . . 72 91 100 48 Level 1 22 | . . . 14 . . . . 53 . 4 . . . . 48 34 14 . 23 37 . . . . . . 59 . . 27 8 . 51 Level 2 1 | . . . . . . . . . . 10 . . . . . . . . 17 . . . . . . . . . . . . . . Level 3 1 | . . . . . . . . . . 15 . . . . . . . . . . . . . . . . . . . . . . . Level 4 4 | . . . . . . . . . . 53 . . . . . . . . . . . . . . . . . . . . . . . Level 5 . | . . . . . . . . . . . . . . . . . . . . . . . . . . . . . . . . . . High Security . | . . . . . . . . . . . . . . . . . . . . . . . . . . . . . . . . . . Max Security . | . . . . . . . . . . . . . . . . . . . . . . . . . . . . . . . . . . Squads Dispatched 41 | . . . 3 . . . 2 4 . 17 . . . . . . 1 . . 5 . . . . 1 . 4 . . 1 . . 3 Investigation 9 | . . . 1 . . . 1 . . 2 . . . . . . 1 . . 1 . . . . . . 1 . . . . . 2 Extermination 9 | . . . . . . . . 3 . 3 . . . . . . . . . 1 . . . . 1 . 1 . . . . . . Reinforcement 13 | . . . 2 . . . 1 1 . 2 . . . . . . . . . 3 . . . . . . 2 . . 1 . . 1 Assault 4 | . . . . . . . . . . 4 . . . . . . . . . . . . . . . . . . . . . . . Garrison 6 | . . . . . . . . . . 6 . . . . . . . . . . . . . . . . . . . . . . . Intercept . | . . . . . . . . . . . . . . . . . . . . . . . . . . . . . . . . . . Construction Impeded 5 | . . . . . . . . 1 . 1 . . . . . . . . . 3 . . . . . . . . . . . . . Haulers Reinforced 2 | . . . . . . . . . . 1 . . . . . . . . . . . . . . . . . . . . . . 1 Stealth | -11 -10 -10 -9 -9 -9 -8 -8 -7 -7 -7 -7 -7 -7 -6 -6 -6 -6 -6 -6 -5 -5 -5 -5 -4 -4 -4 -4 -4 -4 -3 -2 -2 -1 --------- Run | Scr Mat Min Mat Min Exi Min Mat Fac Was Fac Low Low Dat Pro Fac Ext Cet Arc Hub Fac Upp Upp Zhi Pro Fac Was Fac Upp Upp Res Res Tes Acc Distress Signals 19 | . . . 1 . . . . . . 3 . . . . . 2 1 . 1 3 . . . . 3 . 2 . . . . . 3 Communications Jammed . | . . . . . . . . . . . . . . . . . . . . . . . . . . . . . . . . . . Distress Signals . | . . . . . . . . . . . . . . . . . . . . . . . . . . . . . . . . . . Times Spotted 596 | . 4 17 15 9 . 7 21 29 8 47 16 14 . 28 9 29 18 33 20 45 9 15 . 4 29 . 37 3 . 27 24 3 76 Peak Tracking Total 21 | . 3 4 3 4 . 3 5 4 5 6 9 5 . 6 4 7 8 1 5 11 4 5 . 4 6 . 11 5 . 17 18 3 21 Tactical Retreats 65 | . . 6 . . . 2 2 3 2 1 . 1 . . . 2 . . 1 7 1 3 . 1 9 . 10 . . 3 2 . 9 Traps | -11 -10 -10 -9 -9 -9 -8 -8 -7 -7 -7 -7 -7 -7 -6 -6 -6 -6 -6 -6 -5 -5 -5 -5 -4 -4 -4 -4 -4 -4 -3 -2 -2 -1 ------- Run | Scr Mat Min Mat Min Exi Min Mat Fac Was Fac Low Low Dat Pro Fac Ext Cet Arc Hub Fac Upp Upp Zhi Pro Fac Was Fac Upp Upp Res Res Tes Acc Traps Triggered 15 | . . . 1 . . . 1 1 . 1 . . . . . 5 . . 2 . . . . . 1 . . . . . 1 . 2 Indirectly 1 | . . . . . . . . . . . . . . . . . . . 1 . . . . . . . . . . . . . . Trap Hack Attempts . | . . . . . . . . . . . . . . . . . . . . . . . . . . . . . . . . . . Triggered . | . . . . . . . . . . . . . . . . . . . . . . . . . . . . . . . . . . Disarmed . | . . . . . . . . . . . . . . . . . . . . . . . . . . . . . . . . . . Reprogrammed 6 | . . . . . . . . . . . . . . . . . . . . 6 . . . . . . . . . . . . . Reused . | . . . . . . . . . . . . . . . . . . . . . . . . . . . . . . . . . . Traps Extracted . | . . . . . . . . . . . . . . . . . . . . . . . . . . . . . . . . . . Installed . | . . . . . . . . . . . . . . . . . . . . . . . . . . . . . . . . . . Triggered 4 | . . . . . . . . . . . . . . . . . . . . . . . . 4 . . . . . . . . . Machines | -11 -10 -10 -9 -9 -9 -8 -8 -7 -7 -7 -7 -7 -7 -6 -6 -6 -6 -6 -6 -5 -5 -5 -5 -4 -4 -4 -4 -4 -4 -3 -2 -2 -1 ---------- Run | Scr Mat Min Mat Min Exi Min Mat Fac Was Fac Low Low Dat Pro Fac Ext Cet Arc Hub Fac Upp Upp Zhi Pro Fac Was Fac Upp Upp Res Res Tes Acc Machines Disabled 46 | . . 1 . 2 . . . 4 . 6 . 1 . . . 1 . 4 14 5 . . 2 . . . 4 . . . . . 2 Max in Single Turn 8 | . . . . 2 . . . 2 . . . 1 . . . . . 1 8 2 . . 1 . . . 3 . . . . . 1 Garrison Access 2 | . . . . . . . . . . . . . . . . . . . . . . . . . 1 . . . . 1 . . . Network Hub 1 | . . . . . . . . . . . . . . . . . . . 1 . . . . . . . . . . . . . . Energy Cycler 2 | . . . . . . . . . . . . . . . . 2 . . . . . . . . . . . . . . . . . Machines Sabotaged . | . . . . . . . . . . . . . . . . . . . . . . . . . . . . . . . . . . Garrisons Compromised . | . . . . . . . . . . . . . . . . . . . . . . . . . . . . . . . . . . Overloaded Fab Kills . | . . . . . . . . . . . . . . . . . . . . . . . . . . . . . . . . . . Fab Network Shutdowns . | . . . . . . . . . . . . . . . . . . . . . . . . . . . . . . . . . . Hacking | -11 -10 -10 -9 -9 -9 -8 -8 -7 -7 -7 -7 -7 -7 -6 -6 -6 -6 -6 -6 -5 -5 -5 -5 -4 -4 -4 -4 -4 -4 -3 -2 -2 -1 --------- Run | Scr Mat Min Mat Min Exi Min Mat Fac Was Fac Low Low Dat Pro Fac Ext Cet Arc Hub Fac Upp Upp Zhi Pro Fac Was Fac Upp Upp Res Res Tes Acc Machines Accessed 81 | . 3 1 1 . 1 . 6 4 . 11 . 2 3 . 4 4 2 . 3 10 . . 4 1 11 . 5 . . 1 1 . 3 Terminals 56 | . 3 1 1 . . . 6 3 . 8 . . . . 4 4 2 . 3 8 . . . 1 7 . 2 . . . . . 3 Fabricators 5 | . . . . . . . . . . 1 . . . . . . . . . 1 . . . . 2 . 1 . . . . . . Repair Stations 1 | . . . . . . . . . . . . . . . . . . . . . . . . . . . 1 . . . . . . Recycling Units . | . . . . . . . . . . . . . . . . . . . . . . . . . . . . . . . . . . Scanalyzers 6 | . . . . . . . . 1 . 1 . . . . . . . . . 1 . . . . 1 . 1 . . . 1 . . Garrison Access 3 | . . . . . . . . . . 1 . . . . . . . . . . . . . . 1 . . . . 1 . . . Total Hacks 301 | . 7 2 4 . 4 . 20 9 . 25 . 6 22 . 10 8 4 . 8 47 . . 17 4 60 . 29 . . 2 3 . 10 Successful 190 | . 3 1 1 . 4 . 7 4 . 8 . 6 22 . 5 5 1 . 2 33 . . 17 1 44 . 21 . . 1 1 . 3 Failed 109 | . 4 1 3 . . . 13 5 . 17 . . . . 5 3 3 . 6 13 . . . 3 16 . 7 . . 1 2 . 7 Catastrophic 18 | . 3 . . . . . 1 1 . 4 . . . . 1 . 1 . 2 5 . . . . . . . . . . . . . Database Lockouts 2 | . . . . . . . . . . . . . . . . . . . . 1 . . . . . . 1 . . . . . . Manual 129 | . 4 . 4 . . . 11 3 . 10 . . . . 6 9 4 . 7 20 . . . 4 29 . 16 . . . . . 2 Terminals 201 | . 7 2 4 . . . 20 6 . 21 . . . . 10 8 4 . 8 39 . . . 4 41 . 17 . . . . . 10 Fabricators 24 | . . . . . . . . . . 1 . . . . . . . . . 4 . . . . 15 . 4 . . . . . . Repair Stations 6 | . . . . . . . . . . . . . . . . . . . . . . . . . . . 6 . . . . . . Recycling Units . | . . . . . . . . . . . . . . . . . . . . . . . . . . . . . . . . . . Scanalyzers 17 | . . . . . . . . 3 . 2 . . . . . . . . . 4 . . . . 3 . 2 . . . 3 . . Garrison Access 4 | . . . . . . . . . . 1 . . . . . . . . . . . . . . 1 . . . . 2 . . . Terminal Hacks 114 | . 3 1 . . 4 . 2 2 . 4 . 6 22 . 3 2 . . 2 18 . . 17 . 18 . 9 . . . . . 1 Record 25 | . . . . . 4 . . . . 1 . 5 6 . . . . . . 4 . . 5 . . . . . . . . . . Part Schematic 17 | . . . . . . . . 1 . . . . 6 . . . . . . 1 . . 4 . 4 . 1 . . . . . . Robot Schematic 7 | . . . . . . . . . . . . . 7 . . . . . . . . . . . . . . . . . . . . Robot Analysis 11 | . 2 . . . . . 1 . . . . . . . . 1 . . . . . . 4 . 1 . 2 . . . . . . Prototype ID Bank 7 | . . . . . . . . . . . . . 3 . . . . . . . . . 4 . . . . . . . . . . Open Door 2 | . . . . . . . . . . . . 1 . . 1 . . . . . . . . . . . . . . . . . . Level Access Points 1 | . . . . . . . . . . . . . . . . . . . . 1 . . . . . . . . . . . . . Branch Access Points 5 | . . . . . . . . . . 1 . . . . 1 . . . . 1 . . . . 1 . 1 . . . . . . Terminal Index 4 | . . . . . . . . . . 1 . . . . . . . . . 1 . . . . 1 . 1 . . . . . . Fabricator Index 2 | . . . . . . . . 1 . . . . . . . . . . . . . . . . . . 1 . . . . . . Alert Level 2 | . . . . . . . . . . . . . . . . . . . . 1 . . . . 1 . . . . . . . . Unreport Threat 12 | . . . . . . . 1 . . 1 . . . . . 1 . . 1 3 . . . . 4 . 1 . . . . . . Locate Traps 7 | . . . . . . . . . . . . . . . 1 . . . . 2 . . . . 4 . . . . . . . . Reprogram Traps 1 | . . . . . . . . . . . . . . . . . . . . 1 . . . . . . . . . . . . . Recall Investigation 1 | . . . . . . . . . . . . . . . . . . . . . . . . . . . 1 . . . . . . Recall Reinforcements 1 | . . . . . . . . . . . . . . . . . . . . 1 . . . . . . . . . . . . . Registered Prototypes 1 | . . . . . . . . . . . . . . . . . . . . 1 . . . . . . . . . . . . . Zone Layout 8 | . 1 1 . . . . . . . . . . . . . . . . 1 1 . . . . 2 . 1 . . . . . 1 Fabricator Hacks 15 | . . . . . . . . . . . . . . . . . . . . 3 . . . . 10 . 2 . . . . . . Network Status 3 | . . . . . . . . . . . . . . . . . . . . . . . . . 3 . . . . . . . . Load Schematic 5 | . . . . . . . . . . . . . . . . . . . . 1 . . . . 3 . 1 . . . . . . Build 7 | . . . . . . . . . . . . . . . . . . . . 2 . . . . 4 . 1 . . . . . . Repair Station Hacks 4 | . . . . . . . . . . . . . . . . . . . . . . . . . . . 4 . . . . . . Scan Component 2 | . . . . . . . . . . . . . . . . . . . . . . . . . . . 2 . . . . . . Repair 2 | . . . . . . . . . . . . . . . . . . . . . . . . . . . 2 . . . . . . Recycling Unit Hacks . | . . . . . . . . . . . . . . . . . . . . . . . . . . . . . . . . . . Scanalyzer 14 | . . . . . . . . 2 . 2 . . . . . . . . . 4 . . . . 3 . 2 . . . 1 . . Insert Component 8 | . . . . . . . . 1 . 1 . . . . . . . . . 2 . . . . 2 . 1 . . . 1 . . Analyze 6 | . . . . . . . . 1 . 1 . . . . . . . . . 2 . . . . 1 . 1 . . . . . . Garrison Access Hacks 2 | . . . . . . . . . . . . . . . . . . . . . . . . . 1 . . . . 1 . . . Seal Access 2 | . . . . . . . . . . . . . . . . . . . . . . . . . 1 . . . . 1 . . . Unauthorized Hacks 41 | . . . 1 . . . 5 . . 2 . . . . 2 3 1 . . 8 . . . 1 12 . 4 . . . . . 2 Terminals 36 | . . . 1 . . . 5 . . 2 . . . . 2 3 1 . . 8 . . . 1 9 . 2 . . . . . 2 Track 15 | . . . . . . . 1 . . . . . . . . . 1 . . 4 . . . 1 6 . 1 . . . . . 1 Assimilate 1 | . . . . . . . . . . . . . . . . . . . . 1 . . . . . . . . . . . . . Botnet 16 | . . . 1 . . . 3 . . 2 . . . . 1 3 . . . 2 . . . . 2 . 1 . . . . . 1 Operators 4 | . . . . . . . 1 . . . . . . . 1 . . . . 1 . . . . 1 . . . . . . . . Fabricators 5 | . . . . . . . . . . . . . . . . . . . . . . . . . 3 . 2 . . . . . . Report 1 | . . . . . . . . . . . . . . . . . . . . . . . . . 1 . . . . . . . . Prioritize 3 | . . . . . . . . . . . . . . . . . . . . . . . . . 2 . 1 . . . . . . Siphon 1 | . . . . . . . . . . . . . . . . . . . . . . . . . . . 1 . . . . . . Repair Stations . | . . . . . . . . . . . . . . . . . . . . . . . . . . . . . . . . . . Recycling Units . | . . . . . . . . . . . . . . . . . . . . . . . . . . . . . . . . . . Scanalyzers . | . . . . . . . . . . . . . . . . . . . . . . . . . . . . . . . . . . Garrison Access . | . . . . . . . . . . . . . . . . . . . . . . . . . . . . . . . . . . Data Cores Recovered 1 | . . . . . . . . . . . . . . . . 1 . . . . . . . . . . . . . . . . . Used . | . . . . . . . . . . . . . . . . . . . . . . . . . . . . . . . . . . Hacking Detections 56 | . 3 . 1 . . . 6 3 . 10 . . . . 3 4 2 . 2 8 . . . 1 7 . 2 . . . 1 . 3 Full Trace Events 4 | . . . . . . . . . . 2 . . . . . . 1 . . . . . . . . . . . . . . . 1 Feedback Events 1 | . . . . . . . . . . . . . . . . . . . . . . . . . . . . . . . . . 1 Hackware Fried 1 | . . . . . . . . . . . . . . . . . . . . . . . . . . . . . . . . . 1 Feedback Blocked . | . . . . . . . . . . . . . . . . . . . . . . . . . . . . . . . . . . Robot Schematics Acquired 7 | . . . . . . . . . . . . . 7 . . . . . . . . . . . . . . . . . . . . Robots Built . | . . . . . . . . . . . . . . . . . . . . . . . . . . . . . . . . . . Matter . | . . . . . . . . . . . . . . . . . . . . . . . . . . . . . . . . . . Time . | . . . . . . . . . . . . . . . . . . . . . . . . . . . . . . . . . . Total Robot Build Rating . | . . . . . . . . . . . . . . . . . . . . . . . . . . . . . . . . . . Part Schematics Acquired 23 | . . . . . . . . 2 . 1 . . 6 . . . . . . 3 . . 4 . 5 . 2 . . . . . . Parts Built 7 | . . . . . . . . . . . . . . . . . . . . 2 . . . . 5 . . . . . . . . Matter 1776 | . . . . . . . . . . . . . . . . . . . . 570 . . . . 921 . 285 . . . . . . Time 721 | . . . . . . . . . . . . . . . . . . . . 152 . . . . 417 . 152 . . . . . . Total Part Build Rating 39 | . . . . . . . . . . . . . . . . . . . . 10 . . . . 29 . . . . . . . . Parts Repaired 2 | . . . . . . . . . . . . . . . . . . . . . . . . . . . 2 . . . . . . Time 69 | . . . . . . . . . . . . . . . . . . . . . . . . . . . 69 . . . . . . Parts Recycled . | . . . . . . . . . . . . . . . . . . . . . . . . . . . . . . . . . . Recycled Matter . | . . . . . . . . . . . . . . . . . . . . . . . . . . . . . . . . . . Retrieved Matter . | . . . . . . . . . . . . . . . . . . . . . . . . . . . . . . . . . . Retrieved Components . | . . . . . . . . . . . . . . . . . . . . . . . . . . . . . . . . . . Parts Scanalyzed 7 | . . . . . . . . 1 . 1 . . . . . . . . . 2 . . . . 1 . 1 . . . 1 . . Part Schematics Acquired 6 | . . . . . . . . 1 . 1 . . . . . . . . . 2 . . . . 1 . 1 . . . . . . Parts Damaged . | . . . . . . . . . . . . . . . . . . . . . . . . . . . . . . . . . . Bothacking | -11 -10 -10 -9 -9 -9 -8 -8 -7 -7 -7 -7 -7 -7 -6 -6 -6 -6 -6 -6 -5 -5 -5 -5 -4 -4 -4 -4 -4 -4 -3 -2 -2 -1 ------------ Run | Scr Mat Min Mat Min Exi Min Mat Fac Was Fac Low Low Dat Pro Fac Ext Cet Arc Hub Fac Upp Upp Zhi Pro Fac Was Fac Upp Upp Res Res Tes Acc Used RIF Installer . | . . . . . . . . . . . . . . . . . . . . . . . . . . . . . . . . . . Robots Hacked 1 | . . . . . . . . 1 . . . . . . . . . . . . . . . . . . . . . . . . . Non-combat 1 | . . . . . . . . 1 . . . . . . . . . . . . . . . . . . . . . . . . . Combat . | . . . . . . . . . . . . . . . . . . . . . . . . . . . . . . . . . . Robot Hacks Applied 1 | . . . . . . . . 1 . . . . . . . . . . . . . . . . . . . . . . . . . find_chute 1 | . . . . . . . . 1 . . . . . . . . . . . . . . . . . . . . . . . . . Relay Couplers Released . | . . . . . . . . . . . . . . . . . . . . . . . . . . . . . . . . . . Robots Rewired 4 | . . . . . . . . . . . . . . . . 4 . . . . . . . . . . . . . . . . . Allies Hacked . | . . . . . . . . . . . . . . . . . . . . . . . . . . . . . . . . . . Hacks Repelled . | . . . . . . . . . . . . . . . . . . . . . . . . . . . . . . . . . . Allies | -11 -10 -10 -9 -9 -9 -8 -8 -7 -7 -7 -7 -7 -7 -6 -6 -6 -6 -6 -6 -5 -5 -5 -5 -4 -4 -4 -4 -4 -4 -3 -2 -2 -1 -------- Run | Scr Mat Min Mat Min Exi Min Mat Fac Was Fac Low Low Dat Pro Fac Ext Cet Arc Hub Fac Upp Upp Zhi Pro Fac Was Fac Upp Upp Res Res Tes Acc Total Allies 57 | . . 3 . 3 . . . . 18 3 . . . 1 . 8 . . . 1 . . . . . 20 . . . . . . . Largest Group 20 | . . 3 2 3 2 2 . . 18 18 . . . 1 . 5 . . . 1 . . . . . 20 2 . . . . . . Highest-Rated Group 763 | . . 80 49 40 24 24 . . 456 456 . . . 94 . 244 . . . 26 . . . . . 763 50 . . . . . . Highest-Rated Ally 156 | . . 31 31 16 16 16 . . 35 35 . . . 94 . 156 . . . 26 . . . . . 50 25 . . . . . . Total Orders . | . . . . . . . . . . . . . . . . . . . . . . . . . . . . . . . . . . Ally Attacks 429 | . . 20 12 4 . 11 . . 64 204 . . . 18 . 86 . . . . . . . . . . 10 . . . . . . Total Damage 10932 | . . 168 190 45 . 119 . . 1818 5885 . . . 473 . 2028 . . . . . . . . . . 206 . . . . . . Kills 79 | . . 3 3 1 . . . . 4 46 . . . 3 . 19 . . . . . . . . . . . . . . . . . Allies Corrupted 1 | . . . . . . . . . . 1 . . . . . . . . . . . . . . . . . . . . . . . Allies Melted . | . . . . . . . . . . . . . . . . . . . . . . . . . . . . . . . . . . Intel | -11 -10 -10 -9 -9 -9 -8 -8 -7 -7 -7 -7 -7 -7 -6 -6 -6 -6 -6 -6 -5 -5 -5 -5 -4 -4 -4 -4 -4 -4 -3 -2 -2 -1 ------- Run | Scr Mat Min Mat Min Exi Min Mat Fac Was Fac Low Low Dat Pro Fac Ext Cet Arc Hub Fac Upp Upp Zhi Pro Fac Was Fac Upp Upp Res Res Tes Acc Robot Analysis Total 11 | . 2 . . . . . 1 . . . . . . . . 1 . . . . . . 4 . 1 . 2 . . . . . . Derelict Logs Recovered 11 | . . . . . . . . . . . 2 2 . 1 . . . . . . 1 2 . 2 . . . 1 . . . . . Drone Launches . | . . . . . . . . . . . . . . . . . . . . . . . . . . . . . . . . . . Drone Recoveries . | . . . . . . . . . . . . . . . . . . . . . . . . . . . . . . . . . . Exploration | -11 -10 -10 -9 -9 -9 -8 -8 -7 -7 -7 -7 -7 -7 -6 -6 -6 -6 -6 -6 -5 -5 -5 -5 -4 -4 -4 -4 -4 -4 -3 -2 -2 -1 ------------- Run | Scr Mat Min Mat Min Exi Min Mat Fac Was Fac Low Low Dat Pro Fac Ext Cet Arc Hub Fac Upp Upp Zhi Pro Fac Was Fac Upp Upp Res Res Tes Acc Turns Passed 18323 | 39 120 1048 401 515 236 220 879 1609 608 1213 406 786 132 757 688 1248 455 376 703 1035 439 997 264 587 775 68 551 190 85 202 220 64 407 Spaces Moved 13361 | 33 97 540 167 262 131 97 401 781 379 877 297 418 74 433 406 553 109 96 259 607 471 512 209 718 1155 184 719 451 221 370 280 169 885 Core 339 | 1 . . . . . . . . . . . . . . . . . . . . . . . . . . . . . 19 6 67 246 Treads 1363 | . . 359 128 . . . . . . . . 277 74 110 1 . 85 . 96 12 . 202 . . 1 . . . . . . . 18 Legs 2707 | . . . 39 262 131 97 401 510 . . . . . . 105 553 24 96 163 297 . . . . . . . . . . 29 . . Wheels 3030 | 32 97 181 . . . . . 271 379 877 297 141 . 323 300 . . . . 132 . . . . . . . . . . . . . Hover 1511 | . . . . . . . . . . . . . . . . . . . . 166 471 310 82 . . . 285 39 . 35 120 . 3 Flight 4411 | . . . . . . . . . . . . . . . . . . . . . . . 127 718 1154 184 434 412 221 316 125 102 618 Fastest Speed 10 | 50 80 90 180 180 180 180 150 120 110 120 120 120 180 120 120 150 180 180 160 45 70 70 29 29 27 34 32 37 37 34 14 14 10 Average Speed 100 | 79 82 149 192 180 180 180 158 162 118 120 120 159 180 140 134 178 180 180 179 107 74 140 57 48 36 34 45 39 37 38 46 29 27 Slowest Speed 300 | 80 90 180 200 180 180 180 240 210 120 120 120 180 180 180 240 300 240 180 180 270 110 180 175 119 190 34 70 70 37 60 300 50 250 Overloaded Moves . | . . . . . . . . . . . . . . . . . . . . . . . . . . . . . . . . . . Propulsion Burnouts . | . . . . . . . . . . . . . . . . . . . . . . . . . . . . . . . . . . Robots Hopped 30 | . . . . . . . . . . . . . . . . . . . . . . . . . 2 . . . . 9 9 1 9 Cave-ins Triggered . | . . . . . . . . . . . . . . . . . . . . . . . . . . . . . . . . . . Teleports 1 | . . . . . . . . . . . . . . . . . . . . . . . . . . . . . . . . . 1 Exploration Rate (%) 44 | 3 20 84 21 55 50 26 39 21 82 36 46 60 68 69 9 65 50 72 26 24 68 59 60 66 27 89 26 66 27 14 11 31 38 Regions Visited 33 Branch Regions 19 Pre-discovered Areas 8 | . . . . . 1 . . . . . . . 1 1 . . . . . . . 1 3 1 . . . . . . . . . Known Exits Taken 12 | . . . . . . . . . . 1 1 1 1 1 1 . . . . 1 . . . 1 . . 1 1 1 1 . . . Unknown Exits Taken 17 | 1 1 1 1 1 1 1 1 . . . . . . . . 1 1 1 1 . 1 1 1 . . . . . . . 1 1 . Scrap Searched 16 | . . 2 . 1 . . . . . . 1 1 . 2 . . . . . . 2 2 . 3 . . . 1 1 . . . . Spaces Dug 171 | . . . . . . . . 5 2 13 10 1 . . 9 . . . 2 8 1 . . 29 32 . 43 . . 6 . . 10 Terrain Destroyed 766 | . . . . . . . 13 16 2 16 40 13 . 76 9 . . 1 182 66 17 4 . 29 56 . 151 48 . 17 . . 10 Melee 136 | . . . . . . . . 5 2 13 10 1 . . 9 . . . 2 6 . . . 29 32 . 21 . . 6 . . . Projectile 69 | . . . . . . . . . . . . . . 11 . . . 1 8 19 17 3 . . . . . . . . . . 10 AOE 561 | . . . . . . . 13 11 . 3 30 12 . 65 . . . . 172 41 . 1 . . 24 . 130 48 . 11 . . . Actions | -11 -10 -10 -9 -9 -9 -8 -8 -7 -7 -7 -7 -7 -7 -6 -6 -6 -6 -6 -6 -5 -5 -5 -5 -4 -4 -4 -4 -4 -4 -3 -2 -2 -1 --------- Run | Scr Mat Min Mat Min Exi Min Mat Fac Was Fac Low Low Dat Pro Fac Ext Cet Arc Hub Fac Upp Upp Zhi Pro Fac Was Fac Upp Upp Res Res Tes Acc Total 16328 | 42 120 713 212 283 132 119 527 1012 462 960 319 479 73 518 472 745 241 178 366 834 518 744 321 863 1395 188 876 457 222 399 349 181 1008 Wait 1149 | . 8 112 13 . 1 3 27 90 16 9 . 12 . 12 4 61 23 6 1 50 10 163 64 92 165 . 96 . . 4 32 12 63 Move 13277 | 32 96 539 166 261 130 96 400 781 378 876 296 417 73 432 405 552 108 95 258 606 470 511 208 717 1151 183 718 450 220 354 264 166 868 Hop 23 | . . . . . . . . . . . . . . . . . . . . . . . . . 2 . . . . 6 6 1 8 Pick Up 167 | 4 4 12 8 6 . 2 10 17 4 1 2 7 . 4 7 15 8 7 7 16 2 6 3 1 1 1 1 . . 1 7 1 2 Fast Attach 149 | 6 1 1 . . . . 7 8 . 5 . . . 1 7 8 8 1 3 7 3 13 7 2 10 2 14 3 1 10 13 1 7 Attach 154 | . . 6 3 2 1 2 5 9 8 1 . 5 . 10 5 10 17 1 7 32 4 3 2 1 . . 5 1 . 1 3 . 10 Detach 49 | . . . . . . . 2 4 . 2 . . . 4 1 2 3 1 5 9 . . . 2 1 1 3 1 . . 3 . 5 Swap 87 | . 1 . 3 . . 2 5 13 2 10 4 6 . 5 2 5 2 2 7 14 . . . . 3 . 1 . . . . . . Drop 106 | . 1 2 . . . . 7 20 6 2 . . . . 2 3 1 2 4 13 3 4 7 2 7 1 2 . . 3 11 . 3 Fire 888 | . 9 41 19 14 . 14 63 61 46 39 7 28 . 49 30 37 69 63 64 79 26 43 30 . 6 . 12 2 1 4 9 . 23 Melee 194 | . . . . . . . . 9 2 15 10 2 . 1 9 2 . . 4 8 . . . 46 49 . 24 . . 13 . . . Ram 10 | . . . . . . . . . . . . . . . . . . . . . . . . . . . . . . 3 . . 7 Kick 3 | . . . . . . . 1 . . . . . . . . 1 . . . . . . . . . . . . . . 1 . . Crush 5 | . . . . . . . . . . . . 2 . . . . 2 . 1 . . . . . . . . . . . . . . Escape Stasis 42 | . . . . . . . . . . . . . . . . 25 . . 5 . . . . . . . . . . . . . 12 Rewire 25 | . . . . . . . . . . . . . . . . 24 . . . . . 1 . . . . . . . . . . . Trap . | . . . . . . . . . . . . . . . . . . . . . . . . . . . . . . . . . . Miscellaneous . | . . . . . . . . . . . . . . . . . . . . . . . . . . . . . . . . . . Route ------- -11/Scrapyard -10/Materials -10/Mines -9/Materials -9/Mines (discovered 2 exits: *Mat / *Exi) -9/Exiles -8/Mines -8/Materials (discovered 2 exits: *Fac / [*Sto]) -7/Factory -7/Waste -7/Factory (discovered 4 exits: *Fac x2 / *Low x2) -7/Lower Caves -7/Lower Caves (discovered 2 exits: Fac / *Dat) -7/Data Miner -6/Proximity Caves -6/Factory (discovered 4 exits: Low x2 / *Ext x2) -6/Extension (discovered 3 exits: *Fac x2 / *Cet) -6/Cetus -6/Archives (discovered 3 exits: *Fac / *Hub x2) -6/Hub_04(d) -5/Factory (discovered 6 exits: Fac x4 / *Upp x2) -5/Upper Caves -5/Upper Caves (discovered 2 exits: *Fac / *Zhi) -5/Zhirov -4/Proximity Caves -4/Factory (discovered 4 exits: *Res x2 / Upp x2) -4/Waste -4/Factory (discovered 3 exits: *Res / *Upp x2) -4/Upper Caves -4/Upper Caves -3/Research (discovered 2 exits: *Res / [*Qua]) -2/Research -2/Testing -1/Access History --------- Turn | Location | Event 23 | -11/Scrapyard | Discovered new exit (range 16) 40 | -11/Scrapyard | Entered Materials 148 | -10/Materials | Discovered new exit (range 12) 160 | -10/Materials | Entered Mines 217 | -10/Mines | Assembled infested the area 317 | -10/Mines | Build established: Mutant 495 | -10/Mines | Lost 3 parts (1p1n1w) 541 | -10/Mines | Core integrity fell below 50% 581 | -10/Mines | Lost 3 parts (1p2n) 754 | -10/Mines | Received a Mining Laser from a helpful Derelict 878 | -10/Mines | Build established: Scavenger-Mutant 1199 | -10/Mines | Discovered new exit (range 5) 1208 | -10/Mines | Entered Materials 1208 | -9/Materials | Accompanied by 2 allies 1208 | -9/Materials | Evolved 2 slots: Utility x2 1214 | -9/Materials | Led the pair of lost Derelicts to an unsafe place 1575 | -9/Materials | Discovered new exit (range 15) 1609 | -9/Materials | Entered Mines 1658 | -9/Mines | Met a Derelict bent on vengeance 1837 | -9/Mines | Build established: Hauler-Mutant 1844 | -9/Mines | Discovered new exit (range 8) 1978 | -9/Mines | Assisted by bots powering up and referring to "LRC-V3" 2117 | -9/Mines | Deemed a non-threat by the Exiles lab entrance 2117 | -9/Mines | Discovered new exit (range 5) 2124 | -9/Mines | Entered Exiles 2124 | -9/Exiles | Accompanied by 2 allies 2170 | -9/Exiles | Met 8R-AWN 2199 | -9/Exiles | Met EX-HEX 2251 | -9/Exiles | Met EX-BIN 2273 | -9/Exiles | Met EX-DEC 2284 | -9/Exiles | Learned location of Zion (-6) 2336 | -9/Exiles | Discovered new exit (range 14) 2360 | -9/Exiles | Entered Mines 2360 | -8/Mines | Accompanied by 2 allies 2568 | -8/Mines | Discovered new exit (range 7) 2580 | -8/Mines | Entered Materials 2580 | -8/Materials | Evolved 2 slots: Utility x2 2591 | -8/Materials | Found Powered Armor 2595 | -8/Materials | Found Powered Armor 2613 | -8/Materials | Found Powered Armor 2629 | -8/Materials | Discovered new exit (range 10) 3434 | -8/Materials | Discovered new exit (range 16) 3459 | -8/Materials | Entered Factory 3459 | -7/Factory | Evolved 2 slots: Utility x2 5068 | -7/Factory | Sucked down chute 5068 | -7/Factory | Entered Waste 5126 | -7/Waste | Spotted C-40 Crusher 5173 | -7/Waste | Spotted C-40 Crusher 5194 | -7/Waste | Crushed by Compactor (1 part destroyed, 2 dropped) 5246 | -7/Waste | Spotted C-40 Crusher 5297 | -7/Waste | Destroyed C-40 Crusher 5301 | -7/Waste | Spotted C-40 Crusher 5305 | -7/Waste | Spotted C-40 Crusher 5350 | -7/Waste | Spotted C-40 Crusher 5358 | -7/Waste | Crushed by Compactor (1 part destroyed, 1 dropped) 5361 | -7/Waste | Crushed by Compactor (0 parts destroyed, 1 dropped) 5425 | -7/Waste | Destroyed C-40 Crusher 5452 | -7/Waste | Warlord forces began an assault 5454 | -7/Waste | Allies destroyed C-40 Crusher 5458 | -7/Waste | Allies destroyed C-40 Crusher 5462 | -7/Waste | Allies destroyed C-40 Crusher 5463 | -7/Waste | Allies destroyed C-40 Crusher 5470 | -7/Waste | Found Damper Plating 5475 | -7/Waste | Found Damper Plating 5619 | -7/Waste | Discovered new exit (range 11) 5676 | -7/Waste | Entered Factory 5676 | -7/Factory | Accompanied by 18 allies 6026 | -7/Factory | Garrison activated, responded to threat 6076 | -7/Factory | First assault squad dispatched 6145 | -7/Factory | Garrison activated, responded to threat 6226 | -7/Factory | Discovered new exit (range 15) 6242 | -7/Factory | Identified exit to Factory 6320 | -7/Factory | Discovered exit to Factory (range 14) 6403 | -7/Factory | Allied Derelicts emerged from ambush trap array 6721 | -7/Factory | Identified exit to Lower Caves 6889 | -7/Factory | Entered Lower Caves 7280 | -7/Lower Caves | Discovered new exit (range 13) 7281 | -7/Lower Caves | Learned location of 1 exit from Lower Caves 7285 | -7/Lower Caves | Learned 8 Factory zone layouts 7292 | -7/Lower Caves | Attracted the attention of an 0b10 outpost 7293 | -7/Lower Caves | Identified exit to Lower Caves 7295 | -7/Lower Caves | Entered another Lower Caves area 7304 | -7/Lower Caves | Learned Factory terminal intel 7357 | -7/Lower Caves | Identified exit to Data Miner 7514 | -7/Lower Caves | Lost 5 parts (1p1n2u1w) 7536 | -7/Lower Caves | Learned Factory trap positions 7536 | -7/Lower Caves | Learned Research stockpile data 7536 | -7/Lower Caves | Learned Armory security intel 7536 | -7/Lower Caves | Learned Armory garrison access intel 8081 | -7/Lower Caves | Entered Data Miner 8081 | -7/Data Miner | Discovered new exit (range 6) 8116 | -7/Data Miner | Met Data Miner 8146 | -7/Data Miner | Learned location of Section 7 (-3) 8146 | -7/Data Miner | Acquired the access code to Warlord's prototype stash 8171 | -7/Data Miner | Received God Mode back door access code from Data Miner 8211 | -7/Data Miner | Identified exit to Proximity Caves 8213 | -7/Data Miner | Entered Proximity Caves 8426 | -6/Proximity Caves | Escorted by Enhanced Grunt 8490 | -6/Proximity Caves | Spotted B-75 Beast 8539 | -6/Proximity Caves | Allies destroyed B-75 Beast 8633 | -6/Proximity Caves | Destroyed 7 combat bots 8647 | -6/Proximity Caves | Attracted the attention of an 0b10 checkpoint 8833 | -6/Proximity Caves | Lost 3 parts (1p2w) 8943 | -6/Proximity Caves | Core integrity fell below 50% 8956 | -6/Proximity Caves | Discovered exit to Factory (range 10) 8970 | -6/Proximity Caves | Entered Factory 8970 | -6/Factory | Evolved 2 slots: Utility x2 8972 | -6/Factory | Loaded intel: 83 trap records 8973 | -6/Factory | Loaded intel: 22 terminal locations 9061 | -6/Factory | Identified exit to Lower Caves 9061 | -6/Factory | Identified exit to Extension 9537 | -6/Factory | Build established: Scavenger-Mutant 9658 | -6/Factory | Entered Extension 9858 | -6/Extension | Rescued a captive Derelict 9859 | -6/Extension | Rescued a captive Derelict 9933 | -6/Extension | Disrupted transfer network 9970 | -6/Extension | Lost 3 parts (1p1u1w) 9991 | -6/Extension | Rescued a captive Derelict 10014 | -6/Extension | Energy Cycler disabled 10015 | -6/Extension | Rescued a captive Derelict 10017 | -6/Extension | Rescued a captive Derelict 10033 | -6/Extension | Rescued A7 10554 | -6/Extension | Spotted B-75 Beast 10566 | -6/Extension | Allies destroyed B-75 Beast 10582 | -6/Extension | Discovered new exit (range 15) 10584 | -6/Extension | Spotted B-75 Beast 10608 | -6/Extension | Destroyed B-75 Beast 10624 | -6/Extension | Extracted ID and sensor layout for unrecognized location from A7's data core 10653 | -6/Extension | Core integrity fell below 50% 10675 | -6/Extension | Lost 9 parts (1p2n3u3w) 10862 | -6/Extension | Discovered new exit (range 15) 10864 | -6/Extension | Discovered new exit (range 15) 10906 | -6/Extension | Entered Cetus 10958 | -6/Cetus | Spotted Cetus Guard 10958 | -6/Cetus | Spotted Cetus Guard 10964 | -6/Cetus | Spotted Cetus Guard 10970 | -6/Cetus | Destroyed Cetus Guard 10975 | -6/Cetus | Spotted Cetus Guard 10983 | -6/Cetus | Destroyed Cetus Guard 11010 | -6/Cetus | Destroyed Cetus Guard 11066 | -6/Cetus | Destroyed Cetus Guard 11105 | -6/Cetus | Lost 12 parts (1p1n8u2w) 11327 | -6/Cetus | Discovered new exit (range 17) 11346 | -6/Cetus | Lost 7 parts (3n3u1w) 11361 | -6/Cetus | Entered Archives 11532 | -6/Archives | Discovered new exit (range 15) 11549 | -6/Archives | Discovered new exit (range 15) 11664 | -6/Archives | Discovered new exit (range 18) 11737 | -6/Archives | Entered Hub_04(d) 11866 | -6/Hub_04(d) | Core integrity fell below 20% 12032 | -6/Hub_04(d) | Discovered new exit (range 16) 12270 | -6/Hub_04(d) | Network Hub disabled 12291 | -6/Hub_04(d) | Spotted Lightning 12296 | -6/Hub_04(d) | Spotted Lightning 12297 | -6/Hub_04(d) | Spotted Lightning 12355 | -6/Hub_04(d) | Destroyed Lightning 12379 | -6/Hub_04(d) | Destroyed Lightning 12387 | -6/Hub_04(d) | Found Prototype Energy Cannon 12411 | -6/Hub_04(d) | Destroyed Lightning 12417 | -6/Hub_04(d) | Found Prototype Device 12440 | -6/Hub_04(d) | Entered Factory 12440 | -5/Factory | Evolved 2 slots: Propulsion x2 12490 | -5/Factory | Identified EM Dispersion Field 12606 | -5/Factory | Identified EMDS 12717 | -5/Factory | Central database locked down 12737 | -5/Factory | Incoming investigation squad redirected 12857 | -5/Factory | Spotted B-75 Beast 12875 | -5/Factory | Destroyed B-75 Beast 12951 | -5/Factory | Lost 4 parts (1n2u1w) 13056 | -5/Factory | Lost 12 parts (1p3n4u4w) 13146 | -5/Factory | Discovered new exit (range 16) 13348 | -5/Factory | Fabricated Exp. Sensor Array? 13422 | -5/Factory | Identified exit to Factory 13432 | -5/Factory | Identified exit to Upper Caves 13459 | -5/Factory | Fabricated Exp. Sensor Array? 13475 | -5/Factory | Entered Upper Caves 13476 | -5/Upper Caves | Core integrity fell below 50% 13505 | -5/Upper Caves | Lost 5 parts (2n2u1w) 13573 | -5/Upper Caves | Learned Factory trap positions 13671 | -5/Upper Caves | Spotted B-75 Beast 13888 | -5/Upper Caves | Discovered new exit (range 5) 13914 | -5/Upper Caves | Entered another Upper Caves area 13916 | -5/Upper Caves | Build established: Hacker-Mutant 14268 | -5/Upper Caves | Build established: Scavenger-Mutant 14335 | -5/Upper Caves | Learned 4 Factory zone layouts 14339 | -5/Upper Caves | Lost 5 parts (2n3u) 14349 | -5/Upper Caves | Discovered exit to Factory (range 5) 14501 | -5/Upper Caves | Attracted the attention of an 0b10 checkpoint 14501 | -5/Upper Caves | Core integrity fell below 20% 14615 | -5/Upper Caves | Learned location of Warlord (-4) 14899 | -5/Upper Caves | Discovered new exit (range 9) 14911 | -5/Upper Caves | Entered Zhirov 14912 | -5/Zhirov | Discovered new exit (range 3) 14928 | -5/Zhirov | Met Zhirov 14969 | -5/Zhirov | Found Alien Artifact 14969 | -5/Zhirov | Identified Integrated Reactor 14969 | -5/Zhirov | Installed Integrated Reactor, increased core energy generation (+2%) 15146 | -5/Zhirov | Found Alien Artifact 15161 | -5/Zhirov | Learned location of Quarantine (-3) 15161 | -5/Zhirov | Learned location of Testing (-2) 15161 | -5/Zhirov | Learned location of Command (-1) 15164 | -5/Zhirov | Zhirov requested help retrieving the SGEMP Prototype 15175 | -5/Zhirov | Entered Proximity Caves 15398 | -4/Proximity Caves | Learned Research stockpile data 15653 | -4/Proximity Caves | Discovered exit to Factory (range 16) 15755 | -4/Proximity Caves | Learned location of Armory (-3) 15762 | -4/Proximity Caves | Entered Factory 15762 | -4/Factory | Evolved 2 slots: Propulsion x1, Utility x1 15764 | -4/Factory | Loaded intel: 63 trap records 16022 | -4/Factory | Identified exit to Upper Caves 16088 | -4/Factory | Found Prototype Processor 16088 | -4/Factory | Identified Exp. Terrain Scan Processor 16123 | -4/Factory | Fabricated Adv. Hacking Suite? 16194 | -4/Factory | Fabricated Adv. Hacking Suite? 16271 | -4/Factory | Fabricated Nuclear Pulse Array (x2) 16289 | -4/Factory | Discovered new exit (range 13) 16309 | -4/Factory | Identified Transdimensional Reconstructor 16392 | -4/Factory | Discovered new exit (range 16) 16488 | -4/Factory | Fabricated Exp. Signal Interpreter? 16537 | -4/Factory | Manually triggered Chute Trap 16537 | -4/Factory | Sucked down chute 16537 | -4/Factory | Entered Waste 16538 | -4/Waste | Joined by Warlord forces that had cleared the area 16585 | -4/Waste | Found Prototype Device 16585 | -4/Waste | Identified Beam Splitter 16591 | -4/Waste | Discovered new exit (range 22) 16598 | -4/Waste | Found Damper Plating 16604 | -4/Waste | Identified exit to Factory 16605 | -4/Waste | Entered Factory 16605 | -4/Factory | Accompanied by 2 allies 16620 | -4/Factory | Discovered new exit (range 6) 16688 | -4/Factory | Identified exit to Research 16732 | -4/Factory | Lost 3 parts (2n1w) 16749 | -4/Factory | Repaired Nuclear Pulse Thruster 16795 | -4/Factory | Repaired Cld. Nuclear Pulse Thruster 16904 | -4/Factory | Spotted B-86 Titan 16945 | -4/Factory | Lost 5 parts (1p3n1u) 17009 | -4/Factory | Lost 3 parts (1n1u1w) 17013 | -4/Factory | Central database locked down 17023 | -4/Factory | Spotted B-86 Titan 17043 | -4/Factory | Core integrity fell below 50% 17073 | -4/Factory | Lost 5 parts (3u2w) 17137 | -4/Factory | Core integrity fell below 20% 17156 | -4/Factory | Entered Upper Caves 17189 | -4/Upper Caves | Learned 4 Research zone layouts 17328 | -4/Upper Caves | Build established: Hacker-Mutant 17344 | -4/Upper Caves | Discovered new exit (range 6) 17346 | -4/Upper Caves | Identified exit to Upper Caves 17346 | -4/Upper Caves | Entered another Upper Caves area 17365 | -4/Upper Caves | Discovered exit to Research (range 15) 17431 | -4/Upper Caves | Entered Research 17431 | -3/Research | Evolved 2 slots: Propulsion x1, Utility x1 17465 | -3/Research | Spotted B-86 Titan 17511 | -3/Research | Discovered new exit (range 2) 17599 | -3/Research | Discovered new exit (range 18) 17609 | -3/Research | Identified exit to Research 17627 | -3/Research | Lost 10 parts (1p5n2u2w) 17632 | -3/Research | Core integrity fell below 50% 17633 | -3/Research | Entered another Research area 17633 | -2/Research | Evolved 2 slots: Power x1, Utility x1 17844 | -2/Research | Discovered new exit (range 4) 17853 | -2/Research | Entered Testing 17875 | -2/Testing | Lost 10 parts (3n5u2w) 17898 | -2/Testing | Discovered new exit (range 17) 17900 | -2/Testing | Found Prototype Launcher 17917 | -2/Testing | Entered Access 17917 | -1/Access | Evolved 2 slots: Utility x2 17934 | -1/Access | Imp. Hacking Suite fried by hacking feedback 17959 | -1/Access | Incoming investigation squad redirected 17959 | -1/Access | Identified Com. Tesla Bomb Launcher 18047 | -1/Access | Spotted B-99 Colossus 18096 | -1/Access | Found Prototype Device 18096 | -1/Access | Identified Exp. Thermal Shield 18111 | -1/Access | Incoming investigation squad redirected 18250 | -1/Access | Spotted B-99 Colossus 18250 | -1/Access | Spotted B-99 Colossus 18253 | -1/Access | Warped through subspace 18260 | -1/Access | Core integrity fell below 50% 18286 | -1/Access | Core integrity fell below 20% 18318 | -1/Access | Lost 12 parts (5n4u3w) 18324 | -1/Access | Destroyed by S-43 Plague with Heavy Machine Gun Last Messages --------------- 18268_ Hacking Suite destroyed. 18278_ Penetrated by Slug. 18279_ Connecting with Terminal... 18281_ Slug penetrates K-01 Serf. 18281_ Slug penetrates Wall. 18284_ Penetrated by Slug. 18287_ Adv. Core Analyzer destroyed. 18289_ Acquired Unknown Treads. 18289_ Identified Adv. Heavy Siege Treads. 18302_ Penetrated by Slug. 18311_ K-01 Serf cleans the Repair Station. 18313_ Acquired Cmb. Linear Gravjet. 18314_ K-01 Serf cleans the Repair Station. 18317_ Slug penetrates Wall. 18318_ Slug penetrates Repair Station. 18318_ Slug penetrates Wall. 18319_ K-01 Serf cleans the Repair Station. 18321_ Slug penetrates Wall. 18322_ Adv. Targeting Computer destroyed. 18323_ Slammed into S-43 Plague. Map ----- +----------------------------------------------------+ | ?????????????????????????????????????????????????? | | ?????????????????????????????????????????????????? | | ?????????????????????????????????????????????????? | | ?????????????????????????????????????????????????? | | ?????????????????????????????????????????????????? | | ?????????????????????????????????????????????????? | | ?????????????????????????????????????????????????? | | ?????????????????????????????????????????????????? | | ?????????????????????????????????????????????????? | | ?????????????????????????????????????????????????? | | ?????????????????????????????????????????????????? | | ?????????????????????????????????????????????????? | | ?????????????????????????????????????????????????? | | ??????????#######????????????????????????????????? | | ??????????# #####????????????????????????????? | | ??????????# ?????????????????????????????? | | ??????????# ??????????????????????????????? | | ??????????# ???????????????????????????????? | | ??????????# #????????????????????????????????? | | ?########### ###########???????????????????????? | | ?# ! ! # # #???????????????????????? | | ?# # # #???????????????????????? | | ?# """" / g/ """"k #???????????????????????? | | ?#! ""S"" # # ""R"" #???????????????????????? | | ?# "" "" # # "" "" ##### #???????????????? | | ?# # # Ys s@s Y #???????????????? | | ?# ! ! # # s s ##### #???????????????? | | ?# # # Y #???????????????????????? | | ?####/###### ###########???????????????????????? | | ????# #????# #?????????????????????????????????? | | ????# #????# #?????????????????????????????????? | | ??### ###??# #?????????????????????????????????? | | ### #### #?????????????????????????????????? | | #?????????????????????????????????? | | #?????????????????????????????????? | | #?????????????????????????????????? | | ### ###+####?????????????????????????????????? | | ??## ##????????????????????????????????????????? | | ???# #?????????????????????????????????????????? | | ???# #?????????????????????????????????????????? | | ???# #?????????????????????????????????????????? | | ???# #?????????????????????????????????????????? | | ???# #?????????????????????????????????????????? | | ?### ###???????????????????????????????????????? | | ?# #?????#######???????????????????????????? | | ?# ####### ! #???????????????????????????? | | ?# T" #???????????????????????????? | | ?# "" #???????????????????????????? | | ?# ! #???????????????????????????? | | ?# ####### #???????######??????????????? | +----------------------------------------------------+ Best States ------------- Heat Dissipation 97 Energy Generation 55 Energy Capacity 2240 Matter Stores 515 Matter Capacity 600 Sight Range 23 Robot Scan Range 30 Terrain Scan Density 1110 Base Temperature (-) 200 Armor Coverage 2400 Resistance: KI 20 Resistance: TH 15 Resistance: EM 90 Weapon Shielding 66 Evasion (%) 68 Targeting Accuracy 8 Melee Accuracy 32 Core Analysis 10 Recoil Reduction 3 Energy Filtering 50 Offensive Hacking 54 Defensive Hacking 26 Item Schematics ----------------- Proton Missile Launcher | -7/Factory | Hacked Arm. Wheel | -7/Factory | Scanalyzed Hvy. Treads | -7/Factory | Scanalyzed Combat Drone Bay | -7/Data Miner | Free Lgt. Regenerative Plating | -7/Data Miner | Free Exp. Targeting Computer | -7/Data Miner | Free Exp. Transmission Jammer | -7/Data Miner | Free Exp. ECM Suite | -7/Data Miner | Free Plasma Sword | -7/Data Miner | Free Exp. Sensor Array | -5/Factory | Hacked Quantum Reactor | -5/Factory | Scanalyzed EM Dispersion Field | -5/Factory | Scanalyzed Assault Drone Bay | -5/Zhirov | Free Exp. Heat Sink | -5/Zhirov | Free Exp. Optical Array | -5/Zhirov | Free Imp. Arc Thrower | -5/Zhirov | Free Adv. Hacking Suite | -4/Factory | Hacked Nuclear Pulse Array | -4/Factory | Hacked Exp. Signal Interpreter | -4/Factory | Hacked Impulse Thruster Array | -4/Factory | Hacked Micro-nuke Launcher | -4/Factory | Scanalyzed Beam Splitter | -4/Factory | Scanalyzed Exp. Propulsion Shielding | -4/Factory | Hacked Robot Schematics ------------------ I-36 Angel | -7/Data Miner | Free P-70 Sage | -7/Data Miner | Free X-72 Disruptor | -7/Data Miner | Free L-41 Fighter | -7/Data Miner | Free G-67 Veteran | -7/Data Miner | Free G-50 Soldier | -7/Data Miner | Free S-27 Virus | -7/Data Miner | Free Fabricated ------------ Exp. Sensor Array | x1 | -5/Factory Exp. Sensor Array | x1 | -5/Factory Adv. Hacking Suite | x1 | -4/Factory Adv. Hacking Suite | x1 | -4/Factory Nuclear Pulse Array | x2 | -4/Factory Exp. Signal Interpreter | x1 | -4/Factory Alien Tech Used ----------------- Integrated Reactor Transdimensional Reconstructor Achievements -------------- None Challenges ------------ None Game ------ Seed GreatWeaponPenetrator Manual? 0 Play Time 04:49:22 Cumulative 211.3 hours Start 2020.08.29 @ 09:22:50 End 2020.08.29 @ 17:21:41 Sessions 7 Manual Loads 0 Difficulty Rogue Special Mode None Game No. 113 Rogue 113 Adventurer 0 Explorer 0 Win Type - Total 8 Types 6/0/1/1/0/0/0 Lore% 63 Gallery% 80 Achievement% 64 Wizard Run 0 Options --------- ASCII 0 Keyboard 0 Movement Mouse Keybinds 0 Fullscreen 1 Font 24/Smallcaps Map View 76x50 Tactical HUD 1 Map Filters NONE Filters NONE Steam 1 RUN: a54bf2e3-86ed-4f9d-ad47-66a348491ab5